bitfinex/quotes_SOLUSD_20241031
["timestamp","ask_amount","ask_price","bid_price","bid_amount"]
[1730356676166,10.18472998,174.53,174.52,6.53171651]
[1730356676855,10.18472998,174.53,174.52,30.30860051]
[1730356677433,10.18472998,174.53,174.52,36.03860051]
[1730356678360,10.18472998,174.54,174.52,36.03860051]
[1730356678540,10.18472998,174.54,174.53,23.776884]
[1730356678734,10.18472998,174.55,174.53,23.776884]
[1730356679460,10.18472998,174.56,174.54,5.7293]
[1730356679835,10.18472998,174.56,174.55,23.776884]
[1730356681366,15.91352998,174.56,174.52,6.53171651]
[1730356681539,10.18472998,174.53,174.52,0.57131252]
[1730356682239,10.18472998,174.55,174.52,6.30131252]
[1730356682769,10.18472998,174.55,174.53,23.776884]
[1730356684065,10.18472998,174.55,174.53,29.506284]
[1730356684267,10.18472998,174.56,174.53,43.830384]
[1730356684448,10.18472998,174.59,174.55,23.776884]
[1730356685844,10.18472998,174.59,174.57,23.776884]
[1730356686160,10.18472998,174.58,174.57,23.776884]
[1730356686339,10.18472998,174.58,174.54,5.729]
[1730356686536,10.18472998,174.56,174.55,23.776884]
[1730356687441,10.18472998,174.56,174.53,20.0537]
[1730356687644,10.18472998,174.56,174.54,23.776884]
[1730356688464,10.18472998,174.58,174.54,23.776884]
[1730356688858,10.18472998,174.57,174.54,23.776884]
[1730356689458,10.18472998,174.56,174.54,23.776884]
[1730356689963,10.18472998,174.56,174.54,29.505984]
[1730356694653,10.18472998,174.57,174.54,29.505984]
[1730356695577,85.4872,174.63,174.53,14.3241]
[1730356695578,10.18472998,174.56,174.53,14.3241]
[1730356695754,10.18472998,174.56,174.54,23.776884]
[1730356696291,10.18472998,174.57,174.54,23.776884]
[1730356697284,10.18472998,174.56,174.54,29.506084]
[1730356697581,10.18472998,174.56,174.54,23.776884]
[1730356698080,85.4872,174.63,174.54,43.829284]
[1730356698081,10.18472998,174.58,174.54,43.829284]
[1730356698657,10.18472998,174.59,174.54,54.11401398]
[1730356698858,10.18472998,174.61,174.57,23.776884]
[1730356699079,10.18472998,174.62,174.57,23.776884]
[1730356699286,10.18472998,174.62,174.59,23.776884]
[1730356700188,10.18472998,174.61,174.59,23.776884]
[1730356700585,10.18472998,174.61,174.59,29.504484]
[1730356701385,10.18472998,174.6,174.59,23.776884]
[1730356708798,10.18472998,174.6,174.58,14.32]
[1730356708967,10.18472998,174.59,174.57,23.776884]
[1730356709173,10.18472998,174.58,174.57,23.776884]
[1730356710823,10.18472998,174.58,174.56,23.776884]
[1730356712402,10.18472998,174.58,174.55,29.505884]
[1730356713079,10.18472998,174.59,174.55,29.505884]
[1730356713399,10.18472998,174.59,174.55,43.828384]
[1730356713695,10.18472998,174.6,174.55,54.01311398]
[1730356715480,10.18472998,174.59,174.55,43.828384]
[1730356718284,10.18472998,174.61,174.56,10.18472998]
[1730356718486,10.18472998,174.61,174.57,23.776884]
[1730356719502,10.18472998,174.61,174.59,23.776884]
[1730356721304,6.3266,174.65,174.59,23.776884]
[1730356721305,10.18472998,174.62,174.59,23.776884]
[1730356721506,10.18472998,174.62,174.59,29.504284]
[1730356723703,10.18472998,174.6,174.59,29.504284]
[1730356724503,10.18472998,174.61,174.59,29.504284]
[1730356724989,10.18472998,174.6,174.59,29.504284]
[1730356725308,10.18472998,174.61,174.59,29.504284]
[1730356725690,10.18472998,174.61,174.59,23.776884]
[1730356726195,10.18472998,174.6,174.53,31.86222371]
[1730356726392,10.18472998,174.58,174.54,5.7293]
[1730356726599,10.18472998,174.57,174.54,5.7293]
[1730356726811,10.18472998,174.57,174.54,14.3233]
[1730356726988,10.18472998,174.55,174.53,5.95639373]
[1730356727189,10.18472998,174.54,174.52,0.57131252]
[1730356727495,10.18472998,174.53,174.52,0.57131252]
[1730356734000,15.91432998,174.53,174.52,0.57131252]
[1730356737606,10.18472998,174.53,174.52,0.57131252]
[1730356745935,15.91432998,174.53,174.52,0.57131252]
[1730356752011,42.45832998,174.53,174.52,0.57131252]
[1730356752447,43.22456103,174.53,174.52,0.57131252]
[1730356752737,43.99079208,174.53,174.52,0.57131252]
[1730356753240,17.44679208,174.53,174.52,0.57131252]
[1730356754712,37.44679208,174.53,174.52,0.57131252]
[1730356766444,15.91432998,174.53,174.52,0.57131252]
[1730356767350,70.0,174.58,174.52,0.57131252]
[1730356767351,10.18472998,174.54,174.52,0.57131252]
[1730356767648,7.39375583,174.59,174.53,33.96161398]
[1730356767649,10.18472998,174.59,174.53,33.96161398]
[1730356767825,10.18472998,174.59,174.55,23.776884]
[1730356768028,5.25501761,174.6,174.56,10.18472998]
[1730356768237,15.43974759,174.6,174.55,33.96161398]
[1730356768437,10.18472998,174.59,174.55,39.69051398]
[1730356768643,15.43974759,174.6,174.55,54.01301398]
[1730356769038,10.18472998,174.58,174.55,38.099384]
[1730356769247,15.43974759,174.6,174.55,54.01311398]
[1730356769625,10.18472998,174.59,174.55,43.828384]
[1730356770529,10.18472998,174.57,174.54,15.9161]
[1730356770864,10.18472998,174.56,174.54,15.9161]
[1730356774527,10.18472998,174.55,174.54,15.9161]
[1730356775438,10.18472998,174.55,174.53,23.776884]
[1730356775842,10.18472998,174.54,174.53,23.776884]
[1730356776343,10.18472998,174.54,174.52,0.57131252]
[1730356776537,10.18472998,174.53,174.52,24.34819652]
[1730356776938,10.18472998,174.57,174.53,23.776884]
[1730356777258,70.0,174.61,174.52,0.57131252]
[1730356777441,10.18472998,174.53,174.52,0.57131252]
[1730356779562,10.18472998,174.54,174.52,0.57131252]
[1730356781882,10.18472998,174.53,174.52,0.57131252]
[1730356782298,10.18472998,174.54,174.52,0.57131252]
[1730356784715,10.18472998,174.53,174.52,0.57131252]
[1730356786194,15.91432998,174.53,174.52,0.57131252]
[1730356787384,85.91432998,174.53,174.52,0.57131252]
[1730356790894,105.91432998,174.53,174.52,0.57131252]
[1730356791991,35.91432998,174.53,174.52,0.57131252]
[1730356799997,42.15512998,174.53,174.52,1.252e-05]
[1730356800178,70.0,174.48,174.38,14.3358]
[1730356800367,10.18472998,174.42,174.38,20.29060009]
[1730356800587,10.18472998,174.41,174.38,14.3358]
[1730356800787,10.18472998,174.42,174.38,14.3358]
[1730356801081,10.18472998,174.42,174.38,20.28989937]
[1730356801784,10.18472998,174.41,174.38,20.28989937]
[1730356803681,10.18472998,174.41,174.38,14.3358]
[1730356804275,10.18472998,174.42,174.38,14.3358]
[1730356805366,10.18472998,174.42,174.38,20.0704]
[1730356809500,10.18472998,174.43,174.39,23.776884]
[1730356810939,10.18472998,174.43,174.39,29.510984]
[1730356812405,10.18472998,174.42,174.39,29.510984]
[1730356814505,10.18472998,174.41,174.38,14.3358]
[1730356815088,10.18472998,174.4,174.38,14.3358]
[1730356816306,10.18472998,174.41,174.38,14.3358]
[1730356817110,10.18472998,174.39,174.36,5.7352]
[1730356818618,10.18472998,174.4,174.36,5.7352]
[1730356820420,10.18472998,174.41,174.36,30.25802998]
[1730356820802,10.18472998,174.4,174.36,20.0733]
[1730356821023,10.18472998,174.4,174.36,19.5733]
[1730356821700,10.18472998,174.41,174.37,23.776884]
[1730356822614,10.18472998,174.41,174.38,5.7346]
[1730356822788,10.18472998,174.39,174.37,43.849084]
[1730356822988,10.18472998,174.4,174.37,43.849084]
[1730356823187,10.18472998,174.41,174.37,43.849084]
[1730356827924,10.18472998,174.42,174.37,54.03381398]
[1730356828225,10.18472998,174.43,174.37,54.03381398]
[1730356829625,10.18472998,174.43,174.38,10.18472998]
[1730356829922,10.18472998,174.44,174.4,23.776884]
[1730356830707,10.18472998,174.45,174.4,33.96161398]
[1730356831099,10.18472998,174.44,174.4,23.776884]
[1730356831297,10.18472998,174.44,174.41,20.0676]
[1730356831513,10.18472998,174.44,174.42,23.776884]
[1730356832524,10.18472998,174.44,174.42,29.509784]
[1730356835529,10.18472998,174.45,174.42,29.509784]
[1730356844241,10.18472998,174.46,174.42,29.509784]
[1730356847027,10.18472998,174.46,174.42,43.842984]
[1730356847225,10.18472998,174.49,174.44,33.96161398]
[1730356848222,10.18472998,174.49,174.45,20.063]
[1730356848422,10.18472998,174.49,174.45,30.24772998]
[1730356849040,10.18472998,174.51,174.46,33.96161398]
[1730356850136,10.18472998,174.51,174.47,20.0607]
[1730356851441,10.18472998,174.5,174.47,20.0607]
[1730356852516,10.18472998,174.48,174.45,5.7321]
[1730356853527,10.18472998,174.48,174.43,10.18472998]
[1730356853733,10.18472998,174.48,174.45,23.776884]
[1730356854950,10.18472998,174.47,174.45,23.776884]
[1730356855346,10.18472998,174.47,174.44,14.3315]
[1730356855552,10.18472998,174.47,174.44,20.064]
[1730356855848,10.18472998,174.46,174.42,5.7332]
[1730356857826,10.18472998,174.45,174.42,5.7332]
[1730356860735,10.18472998,174.45,174.42,20.0664]
[1730356862449,10.18472998,174.46,174.42,20.0664]
[1730356863152,10.18472998,174.45,174.42,20.0664]
[1730356863555,10.18472998,174.46,174.42,20.0664]
[1730356864040,10.18472998,174.47,174.43,23.776884]
[1730356864232,6.4373,174.51,174.43,23.776884]
[1730356864233,10.18472998,174.48,174.43,23.776884]
[1730356864440,10.18472998,174.47,174.43,23.776884]
[1730356865644,10.18472998,174.47,174.45,23.776884]
[1730356867455,10.18472998,174.47,174.45,29.508784]
[1730356867853,10.18472998,174.46,174.41,14.3339]
[1730356868151,10.18472998,174.42,174.39,11.68491191]
[1730356869151,10.18472998,174.42,174.39,26.02051191]
[1730356869745,10.18472998,174.4,174.39,14.3356]
[1730356870261,10.18472998,174.4,174.36,11.68448436]
[1730356870561,10.18472998,174.39,174.36,11.68448436]
[1730356883550,6.6061,174.45,174.36,11.68448436]
[1730356883551,10.18472998,174.4,174.36,21.86921434]
[1730356883754,10.18472998,174.45,174.4,23.776884]
[1730356883962,10.18472998,174.42,174.38,10.18472998]
[1730356884189,10.18472998,174.41,174.38,23.776884]
[1730356884479,10.18472998,174.42,174.38,23.776884]
[1730356885278,10.18472998,174.41,174.37,20.0719]
[1730356885581,10.18472998,174.4,174.37,20.0719]
[1730356885780,10.18472998,174.41,174.37,20.0719]
[1730356888084,10.18472998,174.4,174.37,20.0719]
[1730356890490,10.18472998,174.41,174.37,20.0719]
[1730356899561,10.18472998,174.4,174.37,20.0719]
[1730356904789,10.18472998,174.41,174.37,20.0719]
[1730356906384,10.18472998,174.39,174.36,5.94938436]
[1730356906592,10.18472998,174.38,174.36,5.94938436]
[1730356907676,10.18472998,174.39,174.36,5.94938436]
[1730356908171,10.18472998,174.38,174.36,5.94938436]
[1730356909094,10.18472998,174.37,174.34,6.3304578]
[1730356909272,10.18472998,174.37,174.34,0.5945578]
[1730356909480,10.18472998,174.36,174.34,0.5945578]
[1730356910478,10.18472998,174.35,174.34,0.5945578]
[1730356911877,15.92022998,174.35,174.34,0.5945578]
[1730356915878,10.18472998,174.35,174.34,0.5945578]
[1730356921987,15.92022998,174.35,174.34,0.5945578]
[1730356929311,10.18472998,174.35,174.34,0.5945578]
[1730356930603,10.18472998,174.36,174.34,0.5945578]
[1730356930804,10.18472998,174.35,174.34,0.5945578]
[1730356931701,10.18472998,174.36,174.34,0.5945578]
[1730356932423,10.18472998,174.37,174.35,23.776884]
[1730356932590,10.18472998,174.38,174.35,23.776884]
[1730356932917,10.18472998,174.4,174.35,33.96161398]
[1730356933502,10.18472998,174.4,174.36,20.0733]
[1730356933702,10.18472998,174.4,174.37,23.776884]
[1730356934620,10.18472998,174.41,174.38,20.0711]
[1730356937021,10.18472998,174.41,174.39,23.776884]
[1730356937214,10.18472998,174.42,174.39,23.776884]
[1730356937530,10.18472998,174.43,174.39,23.776884]
[1730356938024,10.18472998,174.43,174.4,5.7339]
[1730356941312,10.18472998,174.42,174.4,5.7339]
[1730356941817,10.18472998,174.43,174.4,5.7339]
[1730356942610,10.18472998,174.42,174.4,5.7339]
[1730356947517,10.18472998,174.43,174.4,5.7339]
[1730356948731,10.18472998,174.42,174.4,5.7339]
[1730356957341,10.18472998,174.43,174.4,5.7339]
[1730356958528,10.18472998,174.44,174.4,5.7339]
[1730356962132,10.18472998,174.43,174.4,5.7339]
[1730356962727,10.18472998,174.42,174.4,5.7339]
[1730356963852,10.18472998,174.43,174.4,5.7339]
[1730356964928,10.18472998,174.42,174.4,5.7339]
[1730356970128,70.0,174.48,174.39,23.776884]
[1730356970129,10.18472998,174.41,174.39,23.776884]
[1730356970345,10.18472998,174.4,174.39,23.776884]
[1730356971245,10.18472998,174.42,174.39,29.511084]
[1730356971442,10.18472998,174.44,174.39,54.03141398]
[1730356974554,10.18472998,174.43,174.39,43.846684]
[1730356975633,10.18472998,174.41,174.39,38.112484]
[1730356976357,10.18472998,174.44,174.4,23.776884]
[1730356978662,10.18472998,174.43,174.4,23.776884]
[1730356980841,10.18472998,174.44,174.4,23.776884]
[1730356982460,15.91732998,174.44,174.39,23.776884]
[1730356983754,10.18472998,174.42,174.38,5.96275471]
[1730356984560,10.18472998,174.41,174.38,5.96275471]
[1730356985146,10.18472998,174.4,174.38,5.96275471]
[1730356985343,10.18472998,174.39,174.34,15.6073578]
[1730356985662,15.91952998,174.38,174.34,0.5945578]
[1730356986554,10.18472998,174.4,174.34,10.77928778]
[1730356986749,10.18472998,174.4,174.35,23.776884]
[1730356987563,5.7342,174.39,174.35,23.776884]
[1730356989051,15.91892998,174.39,174.35,23.776884]
[1730356991465,10.18472998,174.37,174.34,0.5945578]
[1730356992759,5.7352,174.36,174.34,0.5945578]
[1730356993853,10.18472998,174.35,174.34,0.5945578]
[1730356994960,15.92022998,174.35,174.34,0.5945578]
[1730357017679,35.92022998,174.35,174.34,0.5945578]
[1730357017884,90.0,174.31,174.3,0.4]
[1730357018083,100.18472998,174.31,174.3,0.4]
[1730357018384,30.18472998,174.31,174.3,0.4]
[1730357019292,35.92162998,174.31,174.3,0.4]
[1730357020190,35.92162998,174.31,174.21,5.96614527]
[1730357020191,70.0,174.29,174.21,5.96614527]
[1730357020491,10.18472998,174.23,174.2,15.1224]
[1730357021599,15.92402998,174.24,174.2,15.1224]
[1730357021784,15.92402998,174.24,174.21,23.776884]
[1730357022091,15.92402998,174.24,174.21,11.276884]
[1730357022263,15.92402998,174.24,174.2,15.1224]
[1730357022992,10.18472998,174.23,174.2,15.1224]
[1730357024781,10.18472998,174.21,174.19,5.965476]
[1730357025474,10.18472998,174.2,174.19,5.965476]
[1730357026500,10.18472998,174.2,174.17,0.5945578]
[1730357026793,10.18472998,174.18,174.17,0.5945578]
[1730357026994,10.18472998,174.2,174.17,0.5945578]
[1730357027782,15.92522998,174.2,174.17,0.5945578]
[1730357029092,10.18472998,174.21,174.17,0.5945578]
[1730357029283,10.18472998,174.2,174.17,0.5945578]
[1730357029688,10.18472998,174.23,174.17,10.77928778]
[1730357029905,10.18472998,174.22,174.17,10.77928778]
[1730357030073,10.18472998,174.22,174.17,0.5945578]
[1730357030469,10.18472998,174.22,174.17,10.77928778]
[1730357030897,5.7392,174.24,174.19,33.96161398]
[1730357030898,10.18472998,174.24,174.19,33.96161398]
[1730357031579,15.92392998,174.24,174.19,33.96161398]
[1730357033103,10.18472998,174.23,174.19,23.776884]
[1730357033788,10.18472998,174.24,174.19,33.96161398]
[1730357034379,15.92392998,174.24,174.19,33.96161398]
[1730357037604,10.18472998,174.2,174.17,0.5945578]
[1730357037790,10.18472998,174.18,174.17,0.5945578]
[1730357039774,15.92582998,174.18,174.17,0.5945578]
[1730357040199,5.7411,174.18,174.17,0.5945578]
[1730357043288,10.18472998,174.19,174.17,0.5945578]
[1730357043499,15.92552998,174.19,174.17,0.5945578]
[1730357046375,10.18472998,174.18,174.17,0.5945578]
[1730357048491,15.92582998,174.18,174.17,0.5945578]
[1730357049097,10.18472998,174.18,174.17,0.5945578]
[1730357054594,10.18472998,174.19,174.17,0.5945578]
[1730357055510,10.18472998,174.2,174.17,0.5945578]
[1730357056817,10.18472998,174.21,174.17,0.5945578]
[1730357057016,70.0,174.24,174.17,16.52068778]
[1730357057017,10.18472998,174.22,174.17,16.52068778]
[1730357058022,10.18472998,174.22,174.17,10.77928778]
[1730357058224,10.18472998,174.21,174.17,0.5945578]
[1730357059220,10.18472998,174.21,174.18,5.7411]
[1730357059402,10.18472998,174.22,174.18,5.7411]
[1730357059604,10.18472998,174.23,174.19,23.776884]
[1730357060009,10.18472998,174.26,174.21,10.18472998]
[1730357060199,10.18472998,174.27,174.22,33.96161398]
[1730357060426,10.18472998,174.29,174.24,33.96161398]
[1730357060598,10.18472998,174.29,174.24,10.18472998]
[1730357061033,76.5548,174.34,174.26,5.7385]
[1730357061034,10.18472998,174.3,174.26,5.7385]
[1730357061404,10.18472998,174.3,174.26,20.0848]
[1730357061736,10.18472998,174.31,174.26,30.26952998]
[1730357061939,10.18472998,174.32,174.27,33.96161398]
[1730357063406,10.18472998,174.32,174.28,5.7378]
[1730357065259,10.18472998,174.32,174.27,39.69981398]
[1730357066745,10.18472998,174.31,174.27,5.7382]
[1730357066948,10.18472998,174.3,174.27,5.7382]
[1730357068162,10.18472998,174.3,174.26,20.0848]
[1730357072143,10.18472998,174.29,174.26,20.0848]
[1730357072348,10.18472998,174.27,174.22,38.126284]
[1730357072560,10.18472998,174.26,174.22,38.126284]
[1730357072866,10.18472998,174.26,174.22,14.3494]
[1730357073561,10.18472998,174.26,174.22,20.0892]
[1730357073946,10.18472998,174.25,174.22,20.0892]
[1730357074742,10.18472998,174.25,174.22,14.3494]
[1730357080058,10.18472998,174.25,174.2,21.2586]
[1730357080448,10.18472998,174.23,174.19,5.7407]
[1730357080656,10.18472998,174.22,174.19,5.7407]
[1730357080850,10.18472998,174.25,174.19,15.92542998]
[1730357081171,10.18472998,174.26,174.2,10.18472998]
[1730357082075,10.18472998,174.26,174.21,20.0905]
[1730357082660,10.18472998,174.25,174.21,20.0905]
[1730357087357,10.18472998,174.24,174.2,5.7404]
[1730357087577,10.18472998,174.23,174.2,5.7404]
[1730357087781,10.18472998,174.24,174.2,20.0917]
[1730357088575,10.18472998,174.25,174.2,30.27642998]
[1730357088758,10.18472998,174.25,174.21,23.776884]
[1730357089672,10.18472998,174.25,174.22,5.7398]
[1730357090568,10.18472998,174.24,174.22,5.7398]
[1730357095584,10.18472998,174.24,174.2,14.3513]
[1730357095770,10.18472998,174.24,174.2,20.0918]
[1730357096966,5.7389,174.25,174.2,30.27652998]
[1730357096967,10.18472998,174.25,174.2,30.27652998]
[1730357098179,15.92332998,174.26,174.2,30.27652998]
[1730357100376,10.18472998,174.27,174.22,10.18472998]
[1730357100679,10.18472998,174.29,174.24,10.18472998]
[1730357101183,10.18472998,174.3,174.25,10.18472998]
[1730357101673,10.18472998,174.29,174.24,10.18472998]
[1730357102183,12.3654,174.31,174.21,23.876884]
[1730357102184,10.18472998,174.27,174.23,14.3482]
[1730357103579,10.18472998,174.27,174.23,20.0877]
[1730357103884,10.18472998,174.26,174.23,14.3482]
[1730357104679,10.18472998,174.26,174.23,20.0877]
[1730357104878,10.18472998,174.27,174.23,20.0877]
[1730357105380,30.18472998,174.28,174.23,20.0877]
[1730357105579,35.92262998,174.28,174.23,20.0877]
[1730357106583,15.92262998,174.28,174.23,20.0877]
[1730357106962,10.18472998,174.27,174.21,15.92482998]
[1730357107182,10.18472998,174.27,174.21,10.18472998]
[1730357108187,10.18472998,174.26,174.21,15.92482998]
[1730357108360,15.92312998,174.27,174.21,15.92482998]
[1730357113492,10.18472998,174.26,174.21,15.92482998]
[1730357114797,15.92312998,174.27,174.21,15.92482998]
[1730357116700,10.18472998,174.26,174.21,15.92482998]
[1730357116879,10.18472998,174.26,174.21,5.7401]
[1730357119197,10.18472998,174.22,174.2,5.96155981]
[1730357119400,10.18472998,174.22,174.17,10.77928778]
[1730357119703,10.18472998,174.21,174.17,0.5945578]
[1730357120406,10.18472998,174.22,174.17,0.5945578]
[1730357120704,10.18472998,174.23,174.18,10.18472998]
[1730357121107,10.18472998,174.24,174.18,10.18472998]
[1730357122702,15.92392998,174.24,174.18,10.18472998]
[1730357123001,10.18472998,174.23,174.18,10.18472998]
[1730357126703,10.18472998,174.22,174.18,23.776884]
[1730357126902,10.18472998,174.22,174.17,0.5945578]
[1730357127286,10.18472998,174.21,174.17,0.5945578]
[1730357129308,15.92502998,174.21,174.17,0.5945578]
[1730357129486,10.18472998,174.2,174.17,0.5945578]
[1730357129800,10.18472998,174.19,174.17,0.5945578]
[1730357130314,10.18472998,174.19,174.04,10.18472998]
[1730357130315,20.0,174.13,174.04,10.18472998]
[1730357130513,10.18472998,174.11,174.05,10.18472998]
[1730357130811,30.18472998,174.13,174.06,10.18472998]
[1730357131308,15.92812998,174.12,174.05,10.18472998]
[1730357132515,10.18472998,174.14,174.08,10.18472998]
[1730357132710,5.7427,174.14,174.09,10.18472998]
[1730357132902,15.92742998,174.14,174.06,10.18472998]
[1730357133086,10.18472998,174.12,174.06,10.18472998]
[1730357133600,5.7434,174.11,174.06,10.18472998]
[1730357135296,10.18472998,174.09,174.03,10.18472998]
[1730357135614,10.18472998,174.1,174.04,10.18472998]
[1730357136301,10.18472998,174.08,174.02,10.18472998]
[1730357136812,10.18472998,174.07,174.02,10.18472998]
[1730357137005,10.18472998,174.07,173.99,0.5945578]
[1730357137006,10.18472998,174.07,174.01,10.18472998]
[1730357137513,5.7451,174.06,174.01,10.18472998]
[1730357138307,15.92982998,174.06,174.0,10.18472998]
[1730357139411,5.7451,174.06,174.02,10.18472998]
[1730357140498,5.7451,174.06,174.01,10.18472998]
[1730357142823,10.18472998,174.06,174.01,10.18472998]
[1730357143004,10.18472998,174.05,174.0,10.18472998]
[1730357144126,15.93042998,174.05,174.0,10.18472998]
[1730357145008,5.7457,174.05,174.01,10.18472998]
[1730357145207,5.7451,174.06,174.01,10.18472998]
[1730357145806,15.92982998,174.06,174.01,10.18472998]
[1730357147925,10.18472998,174.07,174.01,10.18472998]
[1730357148402,10.18472998,174.05,174.0,10.18472998]
[1730357148611,10.18472998,174.06,174.01,10.18472998]
[1730357149923,5.7454,174.05,174.01,10.18472998]
[1730357152205,15.93012998,174.05,174.0,10.18472998]
[1730357153304,5.7454,174.05,174.01,10.18472998]
[1730357153508,10.18472998,174.06,174.02,10.18472998]
[1730357153816,10.18472998,174.08,174.03,10.18472998]
[1730357154003,10.18472998,174.07,174.03,10.18472998]
[1730357156128,5.7451,174.06,174.03,10.18472998]
[1730357156317,5.7451,174.06,174.02,10.18472998]
[1730357159033,15.92982998,174.06,174.01,10.18472998]
[1730357159412,5.7451,174.06,174.02,10.18472998]
[1730357161217,15.92982998,174.06,174.01,10.18472998]
[1730357161614,10.18472998,174.03,173.99,0.5945578]
[1730357162432,5.7461,174.03,173.99,10.77928778]
[1730357163535,5.7461,174.03,173.99,0.5945578]
[1730357163753,10.18472998,174.02,173.99,0.5945578]
[1730357163925,15.93082998,174.03,173.99,0.5945578]
[1730357166119,10.18472998,174.02,173.99,0.5945578]
[1730357166530,10.18472998,174.03,173.99,0.5945578]
[1730357167348,5.7464,174.02,173.99,0.5945578]
[1730357170242,10.18472998,174.04,173.99,10.77928778]
[1730357170442,10.18472998,174.04,173.99,0.5945578]
[1730357170645,10.18472998,174.01,173.99,0.5945578]
[1730357170943,10.18472998,174.0,173.99,0.5945578]
[1730357172440,15.93182998,174.0,173.99,0.5945578]
[1730357175439,85.93182998,174.0,173.99,0.5945578]
[1730357175954,105.93182998,174.0,173.99,0.5945578]
[1730357176950,15.93182998,174.0,173.99,0.5945578]
[1730357179931,85.93182998,174.0,173.99,0.5945578]
[1730357180347,15.93182998,174.0,173.99,0.5945578]
[1730357185560,85.93182998,174.0,173.99,0.5945578]
[1730357188632,105.93182998,174.0,173.99,0.5945578]
[1730357195045,105.93182998,174.0,173.99,5.78e-05]
[1730357195244,106.03182998,174.0,173.99,5.78e-05]
[1730357197336,10.18472998,173.92,173.9,15.3278]
[1730357198459,5.7501,173.91,173.9,15.3278]
[1730357201261,5.7501,173.91,173.89,6.6026]
[1730357201262,5.7501,173.91,173.87,10.18472998]
[1730357201466,10.18472998,173.9,173.85,10.18472998]
[1730357201855,10.18472998,173.89,173.84,10.18472998]
[1730357202054,10.18472998,173.9,173.85,10.18472998]
[1730357202253,10.18472998,173.91,173.86,10.18472998]
[1730357202447,10.18472998,173.91,173.87,10.18472998]
[1730357202763,5.7504,173.9,173.86,10.18472998]
[1730357203964,10.18472998,173.92,173.86,10.18472998]
[1730357204152,10.18472998,173.92,173.87,10.18472998]
[1730357204342,20.1206,173.95,173.86,10.18472998]
[1730357204343,10.18472998,173.91,173.86,10.18472998]
[1730357205257,5.7504,173.9,173.86,10.18472998]
[1730357205845,15.93512998,173.9,173.85,10.18472998]
[1730357206439,10.18472998,173.89,173.84,10.18472998]
[1730357207375,10.18472998,173.85,173.83,22.49084824]
[1730357207544,10.18472998,173.84,173.83,16.5273]
[1730357207742,40.73891992,173.88,173.81,0.5945578]
[1730357207743,10.18472998,173.85,173.81,0.5945578]
[1730357208350,10.18472998,173.86,173.81,10.77928778]
[1730357208665,10.18472998,173.91,173.85,10.18472998]
[1730357208874,10.18472998,173.91,173.86,10.18472998]
[1730357209171,10.18472998,173.91,173.84,16.1733]
[1730357209172,10.18472998,173.92,173.84,16.1733]
[1730357209403,70.0,173.95,173.84,16.1733]
[1730357210282,10.18472998,173.9,173.85,10.18472998]
[1730357210854,15.93522998,173.9,173.85,10.18472998]
[1730357213848,10.18472998,173.89,173.84,26.35802998]
[1730357214057,15.93522998,173.9,173.85,10.18472998]
[1730357214373,10.18472998,173.89,173.84,26.35802998]
[1730357215668,10.18472998,173.9,173.85,10.18472998]
[1730357215871,10.18472998,173.9,173.84,26.35802998]
[1730357216474,10.18472998,173.89,173.84,26.35802998]
[1730357216673,10.18472998,173.88,173.84,16.1733]
[1730357216981,5.7503,173.91,173.81,10.77928778]
[1730357216982,10.18472998,173.86,173.81,10.77928778]
[1730357217359,10.18472998,173.87,173.81,10.77928778]
[1730357217660,5.7517,173.86,173.81,10.77928778]
[1730357217850,15.93642998,173.86,173.81,10.77928778]
[1730357218254,10.18472998,173.85,173.81,0.5945578]
[1730357218473,15.93642998,173.86,173.81,10.77928778]
[1730357218657,5.7517,173.86,173.81,10.77928778]
[1730357219075,15.93642998,173.86,173.81,10.77928778]
[1730357219781,15.93642998,173.86,173.81,0.5945578]
[1730357220165,10.18472998,173.86,173.81,10.77928778]
[1730357220368,10.18472998,173.87,173.81,10.77928778]
[1730357221281,10.18472998,173.87,173.82,10.18472998]
[1730357221579,5.7513,173.88,173.81,0.5945578]
[1730357221580,10.18472998,173.85,173.81,0.5945578]
[1730357222385,5.7522,173.85,173.81,10.77928778]
[1730357224265,10.18472998,173.85,173.81,0.5945578]
[1730357224981,15.93542998,173.89,173.84,10.18472998]
[1730357227173,10.18472998,173.88,173.83,10.18472998]
[1730357228473,5.7514,173.87,173.83,10.18472998]
[1730357229800,5.7514,173.87,173.84,10.18472998]
[1730357230476,10.18472998,173.92,173.86,10.18472998]
[1730357230793,10.18472998,173.91,173.86,10.18472998]
[1730357231892,5.7504,173.9,173.86,10.18472998]
[1730357232193,10.18472998,173.87,173.82,25.78632998]
[1730357232487,5.7504,173.9,173.83,10.18472998]
[1730357232488,10.18472998,173.88,173.83,10.18472998]
[1730357232693,5.7504,173.9,173.82,15.6016]
[1730357232694,10.18472998,173.87,173.82,25.78632998]